Cogmind - Beta 17 @@@ ROGUE MODE // 2026.08.09 @ 21:33:44 Player: Marc Result: Destroyed by 7O-0C6(R) with Subdweller Machine Gun Performance ------------- Evolutions (0) 0 Regions Visited (2) 400 Robots Destroyed (3) 15 Value Destroyed (114) 114 Prototype IDs (0) 0 Alien Tech Used (0) 0 Bonus (0) 0 TOTAL SCORE: 529 Bonus ------- None Cogmind --------- Core Integrity 0/250 Matter 205/300 Energy 89/100 System Corruption 0% Temperature Cool (0) Movement Core (50) Location -10/Subcaves Parts ------- > --- POWER (1) -------- (None) > --- PROPULSION (2) --- (None) > --- UTILITY (2) ------ Subdweller Optics > --- WEAPON (2) ------- (None) > --- INVENTORY (5) ---- Aluminum Leg Aluminum Leg Targeting Computer Scrap Shield Peak State ------------ > --- POWER ------------ (None) > --- PROPULSION ------- Improved Hover Unit Improved Hover Unit > --- UTILITY ---------- Scrap Shield > --- WEAPON ----------- Medium Laser > --- INVENTORY -------- Aluminum Leg Aluminum Leg Utility Shielding [Rating: 9] Favorites ----------- Power Light Ion Engine Engine Light Ion Engine Propulsion Improved Hover Unit Leg Aluminum Leg Hover Unit Improved Hover Unit Utility Utility Shielding Device Subdweller Optics Protection Utility Shielding Weapon Medium Laser Energy Gun Medium Laser Build | -11 -10 -10 ------- Run | Yrd Mat Sub Slots Evolved . | . . . Power . | . . . Propulsion . | . . . Utility . | . . . Weapon . | . . . Parts Attached 10 | 4 3 3 Power 2 | 1 . 1 Engine 2 | 1 . 1 Core . | . . . Reactor . | . . . Propulsion 4 | 2 2 . Treads . | . . . Leg 2 | 2 . . Wheel . | . . . Hover 2 | . 2 . Flight . | . . . Utility 3 | . 1 2 Device 1 | . . 1 Storage . | . . . Processor . | . . . Hackware . | . . . Protection 2 | . 1 1 Artifact . | . . . Weapon 1 | 1 . . Energy Gun 1 | 1 . . Energy Cannon . | . . . Ballistic Gun . | . . . Ballistic Cannon . | . . . Launcher . | . . . Special Weapon . | . . . Impact Weapon . | . . . Slashing Weapon . | . . . Piercing Weapon . | . . . Special Melee Weapon . | . . . Unidentified Prototypes . | . . . Parts Lost 5 | . . 5 Power 2 | . . 2 Propulsion 2 | . . 2 Utility . | . . . Weapon 1 | . . 1 Highest Loss Streak 4 | . . 4 To Critical Strikes . | . . . Average Backups 1 | . 1 3 Power . | . . . Propulsion 1 | . 1 2 Utility . | . . 1 Weapon . | . . . Tool/Special . | . . . Unused Backups . | . . . Power . | . . . Propulsion . | . . . Utility . | . . . Weapon . | . . . Tool/Special . | . . . Average Slot Usage (%) 60 | . 65 50 Engine 11 | . 14 4 Leg 9 | . 14 . Hover 15 | . 13 19 Device 3 | . . 9 Protection 7 | . 9 4 Energy Gun 12 | . 14 10 Peak Build Rating 9 | 4 7 9 Average Rating 5 | 2 5 6 On Entrance 3 | . 4 7 Avg Prop Armor Cover (%) . | . . . Naked Turns . | . . . Heaviest Build 20 | 5 6 20 Greatest Support 20 | 20 20 14 Greatest Overweight (x) 1 | . . 1 Average Overweight (x) . | . . . Largest Inventory Capacity 5 | 5 5 5 Average Capacity 5 | 5 5 5 Most Carried 5 | 3 3 5 Average Carried 1 | . 1 3 Final Capacity 5 | 5 5 5 Final Carried 5 | . 2 5 Class Distribution -------------------- 100% | Mutant Dominant Class ---------------- Mutant | -10/Materials Mutant | -10/Subcaves Resources | -11 -10 -10 ----------- Run | Yrd Mat Sub Matter Collected 180 | 70 50 60 Remotely . | . . . Salvage Created 163 | . 50 113 Parts 6 | . . 6 Haulers Intercepted . | . . . Recyclers Shooed . | . . . Parts Field Recycled . | . . . Retrieved Matter . | . . . Parts Self-Destructed . | . . . Prevented . | . . . Parts Restored . | . . . Kills | -11 -10 -10 ------- Run | Yrd Mat Sub Combat Hostiles Destroyed 3 | . 1 2 Guns 2 | . . 2 Classes Destroyed 2 | . 1 1 Grunt 1 | . 1 . Subdweller 2 | . . 2 Best Kill Streak 1 | . 1 1 Combat Bots Only 1 | . 1 1 Max Kills in Single Turn 1 | . 1 1 Gunslinging . | . . . Exploded . | . . . Melee . | . . . Uniques/NPCs Destroyed . | . . . Combat | -11 -10 -10 -------- Run | Yrd Mat Sub Hostile Shots Fired 51 | . 9 42 Missed 18 | . 1 17 Hits 33 | . 8 25 Projectile 33 | . 8 25 Damage Taken 633 | . 103 530 Core 273 | . 21 252 Absorbed by Shields . | . . . Core Remaining (%) 100 | 100 . . Volleys Fired 27 | . 10 17 Largest 1 | . 1 1 Hottest 50 | . 50 50 Shots Fired 27 | . 10 17 Gun 27 | . 10 17 Cannon . | . . . Launcher . | . . . Special . | . . . Kinetic . | . . . Thermal 27 | . 10 17 Explosive . | . . . Electromagnetic . | . . . Robot Hit Streak 6 | . 3 6 Robot Miss Streak 3 | . 2 3 Penetration Max . | . . . Secondary Targets . | . . . Shots Hit Robots 18 | . 6 12 Core Hits 4 | . 1 3 Critical Kills . | . . . Critical Parts Destroyed . | . . . Critical Strikes 2 | . 1 1 Burn 2 | . 1 1 Melee Attacks . | . . . Impact . | . . . Slashing . | . . . Piercing . | . . . Sneak Attacks . | . . . Combat Hostiles . | . . . Follow-up Attacks . | . . . Damage Inflicted 215 | . 76 139 Guns 215 | . 76 139 Cannons . | . . . Explosions . | . . . Melee . | . . . Ramming . | . . . Kinetic . | . . . Thermal 215 | . 76 139 Explosive . | . . . Electromagnetic . | . . . Impact . | . . . Slashing . | . . . Piercing . | . . . Highest Corruption . | . . . Average Corruption . | . . . Corruption Purged . | . . . Corruption Blocked . | . . . Overload Shots . | . . . Overflow Damage . | . . . Projectiles . | . . . Explosions . | . . . Melee . | . . . Knockbacks . | . . . Impact . | . . . Kinetic . | . . . Secondary . | . . . Self-Inflicted Damage . | . . . Shots . | . . . Rammed . | . . . Targets Rammed . | . . . Kicked . | . . . Crushed . | . . . Highest Temperature 148 | . 148 . Average Temperature 74 | . 74 . Received Heat Transfer 105 | . 48 57 Siege Activations . | . . . Martial Activations . | . . . Shielding Activations . | . . . Robots Disrupted . | . . . Combat Hostiles . | . . . Robots Corrupted . | . . . Combat Hostiles . | . . . Parts Fried . | . . . Impact Corruptions . | . . . Robots Melted 1 | . 1 . Combat Hostiles 1 | . 1 . Parts Melted 1 | . 1 . Heat Transferred 777 | . 296 481 Parts Sabotaged . | . . . Parts Stolen . | . . . Parts Stripped . | . . . Power Chain Reactions . | . . . Alert | -11 -10 -10 ------- Run | Yrd Mat Sub Maximum Alert Level . | . . . Low Security (%) 100 | 100 100 . Level 1 . | . . . Level 2 . | . . . Level 3 . | . . . Level 4 . | . . . Level 5 . | . . . High Security . | . . . Max Security . | . . . Peak Influence 20 | . 20 . Initial . | . . . Average 1 | . 1 . Influence Increases 50 | . 50 . Destroy 0b10 Robot/C 20 | . 20 . Partial Spotted 30 | . 30 . Influence Decreases 50 | . 35 15 Entered New Map 8 | . . 8 Time Decay 35 | . 35 . Lost Part 7 | . . 7 Squads Dispatched 2 | . 2 . Investigation . | . . . Extermination . | . . . Reinforcement 2 | . 2 . Assault . | . . . Garrison . | . . . Intercept . | . . . Searches Triggered . | . . . Construction Impeded . | . . . Haulers Reinforced . | . . . Active Scanning Responses . | . . . Cargo Convoy Interrupts . | . . . Stealth | -11 -10 -10 --------- Run | Yrd Mat Sub Distress Signals . | . . . Communications Jammed . | . . . Distress Signals . | . . . Times Spotted 16 | . 5 11 Peak Tracking Total 6 | . 5 6 Tactical Retreats . | . . . Traps | -11 -10 -10 ------- Run | Yrd Mat Sub Traps Triggered 1 | . 1 . Indirectly . | . . . Trap Hack Attempts . | . . . Triggered . | . . . Disarmed 5 | . 5 . Reprogrammed . | . . . Reused . | . . . Traps Extracted . | . . . Installed . | . . . Triggered . | . . . Machines | -11 -10 -10 ---------- Run | Yrd Mat Sub Machines Disabled . | . . . Max in Single Turn . | . . . Machines Repaired . | . . . Machines Dismantled . | . . . Machines Sabotaged . | . . . Overloaded Fab Kills . | . . . Hacking | -11 -10 -10 --------- Run | Yrd Mat Sub Machines Accessed 2 | . 2 . Terminals 1 | . 1 . Fabricators . | . . . Repair Stations . | . . . Recycling Units 1 | . 1 . Scanalyzers . | . . . Garrison Access . | . . . Total Hacks 8 | . 8 . Successful 5 | . 5 . Failed 3 | . 3 . Catastrophic . | . . . Database Lockouts . | . . . Manual 1 | . 1 . Terminals 5 | . 5 . Fabricators . | . . . Repair Stations . | . . . Recycling Units 3 | . 3 . Scanalyzers . | . . . Garrison Access . | . . . Terminal Hacks 3 | . 3 . Locate Traps 1 | . 1 . Disarm Traps 1 | . 1 . Reinforcement Status 1 | . 1 . Fabricator Hacks . | . . . Repair Station Hacks . | . . . Recycling Unit Hacks 2 | . 2 . Process 2 | . 2 . Scanalyzer . | . . . Garrison Access Hacks . | . . . Unauthorized Hacks . | . . . Terminals . | . . . Fabricators . | . . . Repair Stations . | . . . Recycling Units . | . . . Scanalyzers . | . . . Garrison Access . | . . . Data Cores Recovered . | . . . Used . | . . . Hacking Detections 1 | . 1 . Full Trace Events . | . . . Feedback Events . | . . . Feedback Blocked . | . . . Robot Schematics Acquired . | . . . Robots Built . | . . . Authchips . | . . . Time . | . . . Total Robot Build Rating . | . . . Part Schematics Acquired . | . . . Parts Built . | . . . Authchips . | . . . Time . | . . . Total Part Build Rating . | . . . Part Studies Acquired . | . . . Parts Repaired . | . . . Time . | . . . Parts Recycled . | . . . Recycled Matter 45 | . 45 . Retrieved Matter . | . . . Retrieved Components . | . . . Parts Scanalyzed . | . . . Part Schematics Acquired . | . . . Parts Damaged . | . . . Bothacking | -11 -10 -10 ------------ Run | Yrd Mat Sub Used RIF Installer . | . . . Robots Hacked . | . . . Non-combat . | . . . Combat . | . . . Robot Hacks Applied . | . . . Relay Couplers Released . | . . . Fabnet Peak Effective % . | . . . Robots Rewired . | . . . Allies Hacked . | . . . Hacks Repelled . | . . . Allies | -11 -10 -10 -------- Run | Yrd Mat Sub Total Allies . | . . . Largest Group . | . . . Highest-Rated Group . | . . . Highest-Rated Ally . | . . . Total Orders . | . . . Ally Attacks . | . . . Total Damage . | . . . Kills . | . . . Allies Corrupted . | . . . Allies Melted . | . . . Intel | -11 -10 -10 ------- Run | Yrd Mat Sub Active Infowar (turns) 120 | . . 120 Optics 120 | . . 120 Robot Analysis Total . | . . . Derelict Logs Recovered . | . . . Drone Launches . | . . . Drone Recoveries . | . . . Exploration | -11 -10 -10 ------------- Run | Yrd Mat Sub Turns Passed 582 | 44 374 164 Spaces Moved 422 | 38 225 159 Core 73 | 13 . 60 Treads . | . . . Legs 133 | 25 108 . Wheels . | . . . Hover 216 | . 117 99 Flight . | . . . Fastest Speed 50 | 50 56 50 Average Speed 77 | 96 86 59 Slowest Speed 120 | 120 120 116 Overloaded Moves . | . . . Propulsion Burnouts . | . . . Robots Hopped . | . . . Potential Cave-ins . | . . . Cave-ins Triggered . | . . . Exploration Rate (%) 17 | 3 37 12 Regions Visited 2 Branch Regions 1 Pre-discovered Areas . | . . . Known Exits Taken . | . . . Unknown Exits Taken 2 | 1 1 . Scrap Searched . | . . . Spaces Dug . | . . . Terrain Destroyed . | . . . Melee . | . . . Projectile . | . . . AOE . | . . . Terrain Rammed . | . . . Walls Destroyed . | . . . Machines Disabled . | . . . Actions | -11 -10 -10 --------- Run | Yrd Mat Sub Total 652 | 45 394 213 Wait 177 | . 152 25 Move 420 | 37 224 159 Hop . | . . . Pick Up 12 | 4 3 5 Fast Attach . | . . . Attach 10 | 4 3 3 Detach 4 | . 2 2 Swap . | . . . Drop 2 | . . 2 Fire 27 | . 10 17 Melee . | . . . Ram . | . . . Kick . | . . . Crush . | . . . Escape Stasis . | . . . Rewire . | . . . Trap . | . . . Miscellaneous . | . . . Route ------- -11/Scrapyard -10/Materials (discovered 2 exits: [*Mat] / [*Sub]) -10/Subcaves History --------- Turn | Location | Event 9 | -11/Scrapyard | Discovered new exit (range 16) 45 | -11/Scrapyard | Entered Materials 308 | -10/Materials | Build established: Mutant 392 | -10/Materials | Discovered new exit (range 3) 397 | -10/Materials | Discovered new exit (range 6) 419 | -10/Materials | Entered Subcaves 420 | -10/Subcaves | Approached by a straggling Scientist 497 | -10/Subcaves | Ambushed by swarm of Subdwellers 567 | -10/Subcaves | Core integrity fell below 50% 569 | -10/Subcaves | Lost 4 allies 571 | -10/Subcaves | Lost 4 parts (1p2n1w) 580 | -10/Subcaves | Core integrity fell below 20% 583 | -10/Subcaves | Destroyed by 7O-0C6(R) with Subdweller Machine Gun Last Messages --------------- 00500_ HV Slug penetrates D5-EEO(R). 00500_ D5-EEO(R) suffers critical hit (Destroy). 00500_ D5-EEO(R) destroyed. 00501_ FL-G4K(R) emerges from the Twisted Machinery. 00502_ FC-1Q6(c) destroyed. 00503_ 9M-3RO(R) suffers critical hit (Destroy). 00504_ SX-MI4(g): "Sorry we're late! Had another grouchy Sub to deal with. Who's the new fellow?" 00506_ O6-XYW(h) suffers critical hit (Destroy). 00506_ O6-XYW(h) destroyed. 00507_ Subatomizers dissect the Sub. Optics. 00509_ NC-6E7(R) destroyed. 00511_ Sub. Power Source destroyed. 00522_ EK-E9J(R) destroyed. 00535_ Imp. Hover Unit destroyed. 00540_ Med. Laser destroyed. 00577_ Acquired Targeting Computer. 00579_ Acquired 56 matter. Map ----- +----------------------------------------------------+ | ???# ????????????????????#!%! ###????????????????? | | ???# ????????????????????### #????????????????? | | ??## ????????????????????#" #????????????????? | | ### ????????????????????## & ##????????????????? | | ????????????????????#% !##????????????????? | | ????????????????????## %#????????????????? | | ? ?????????????????????#% #????????????????? | | ??# ???####???#####?????# ##????????????????? | | ??# ??## ##?## ###??## #????????????????? | | ???# ### ### #??# #????????????????? | | ???# ##?# "" ##???????????????? | | ??## ## ### #### " ##??????????????? | | ?## ## " ""#?# ### #??????????????? | | ?# # """ " #?# ## #####???????#??? | | ?# # """" ## #?????? #??? | | ?## ## ## """" "## ###????? #??? | | ??## ## ##### """""### """ ##?????? #??? | | ???###?## #??# ""#?## !=" ###???? #???? | | ????????# #?? #?##%==" ##?? #????? | | ???????? #? #?# ! !##"[ ## #?????? | | ??????? ?# #### ?# ####%= #?????? | | ?????? #?#####??# ### =%### ##?????? | | ????? ###???????## # %[ ##??????? | | ???? #?????????# *% #???????? | | ???? ## ##?????????## # # %! ## # #??????? | | ??? #?##????????????# @# ## !&! ?????? | | ?? ???????????????# % * =&* #????? | | ? ????????????????## % ###&%## #???? | | ###?????????????????## ## %! #??&&#?# ?? | | #?????????????????????##?#;#=R # #??# #? # | | ????????????????????????# "" #####??? ##?? # | | ????????????????????????#### #??????? ???? % # | | ???????????????????????????# ##???????? ???? | | ??????????????????????????? ????????? ????? | | ??????????????????????????# ???????? #????? % | | ?????????????????????????? ????????? ?????? | | ?????????????????????????? ???????? ??????? | | ????????????????????????? ? ??????? ?????? | | ????????????????????????? ? ????????? ?????? | | ???????????????????????? ?#?????????#????? | | ????????????????????????? ##????????????????? | | ???????????????????????? ## ??????????????????? | | ????????????????????????###?? ??????????????????? | | ????????????????????????????? ??????????????????? | | ?????????????????????????????????????????????????? | | ?????????????????????????????????????????????????? | | ?????????????????????????????????????????????????? | | ?????????????????????????????????????????????????? | | ?????????????????????????????????????????????????? | | ?????????????????????????????????????????????????? | +----------------------------------------------------+ Best States ------------- Heat Dissipation 25 Energy Generation 15 Energy Capacity 200 Matter Stores 205 Matter Capacity 300 Sight Range 21 Terrain Scan Density 10 Armor Coverage 800 Utility Shielding 33 Evasion (%) 55 Item Schematics ----------------- None Robot Schematics ------------------ None Fabricated ------------ Nothing Repaired ---------- Nothing Studied --------- None Alien Tech Used ----------------- None Achievements -------------- None Challenges ------------ None Game ------ Seed GunBraceShield Manual? 0 Play Time 00:12:15 Cumulative 9.7 hours Start 2026.08.09 @ 21:25:10 End 2026.08.09 @ 21:33:44 Sessions 1 Manual Loads 0 Difficulty Rogue Special Mode None Game No. 24 Rogue 17 Adventurer 7 Explorer 0 Win Type - Total 0 Types 0/0/0/0/0/0/0/0/0/0 Lore% 9 Gallery% 13 Achievement% 11 Wizard Run 0 Options --------- Layout 1 ASCII 0 Keyboard 0 Movement Mouse Keybinds 0 Fullscreen 1 Font 24/Smallcaps Map View 50x35 Zoom Use 0% Tactical HUD 1 Map Filters NONE Filters NONE Steam 1 RUN: 58aec4a4-1664-42ce-b7cf-8bc66473ab36